fUSD/lending_fUSD_20250324
["ID","MTS","AMOUNT","RATE_DAILY","PERIOD"]
[356627072,1742849447273,-500.0,0.00046575,120]
[356627073,1742849447282,-500.0,0.00046575,120]
[356627074,1742849447291,-500.0,0.00046575,120]
[356627075,1742849447300,-500.0,0.00046575,120]
[356627076,1742849447310,-502.36530326,0.00046575,120]
[356627077,1742849447319,-500.0,0.00046575,120]
[356627078,1742849447328,-267.2622857,0.00046575,120]
[356627079,1742849447338,-500.0,0.00046575,120]
[356627080,1742849447347,-500.0,0.00046575,120]
[356627081,1742849447356,-501.48661286,0.00046575,120]
[356627082,1742849447366,-500.0,0.00046575,120]
[356627083,1742849447375,-500.0,0.00046575,120]
[356627084,1742849447385,-500.0,0.00046575,120]
[356627085,1742849447394,-532.10855296,0.00046575,120]
[356627086,1742849447404,-500.0,0.00046575,120]
[356627087,1742849447413,-518.8065657,0.00046575,120]
[356627088,1742849447422,-500.0,0.00046575,120]
[356627089,1742849447432,-501.94087669,0.00046575,120]
[356627090,1742849447441,-500.0,0.00046575,120]
[356627091,1742849447450,-500.0,0.00046575,120]
[356627092,1742849447460,-500.0,0.00046575,120]
[356627093,1742849447469,-501.59553576,0.00046575,120]
[356627094,1742849447478,-517.09023203,0.00046575,120]
[356627095,1742849447487,-500.0,0.00046575,120]
[356627096,1742849447496,-500.0,0.00046575,120]
[356627097,1742849447505,-504.76255881,0.00046575,120]
[356627098,1742849447515,-500.0,0.00046575,120]
[356627099,1742849447523,-488.47667537,0.00046575,120]
[356627100,1742849447532,-500.0,0.00046575,120]
[356627101,1742849447541,-500.0,0.00046575,120]
[356627102,1742849447551,-500.0,0.00046575,120]
[356627103,1742849447560,-500.0,0.00046575,120]
[356627104,1742849447570,-516.81776936,0.00046575,120]
[356627105,1742849447579,-598.81115392,0.00046575,120]
[356627106,1742849447589,-500.0,0.00046575,120]
[356627107,1742849447598,-520.2468925,0.00046575,120]
[356627108,1742849447607,-512.85599805,0.00046575,120]
[356627109,1742849447618,-500.0,0.00046575,120]
[356627110,1742849447628,-504.6070408,0.00046575,120]
[356627111,1742849447637,-500.0,0.00046575,120]
[356627112,1742849447645,-500.0,0.00046575,120]
[356627113,1742849447656,-578.25764908,0.00046575,120]
[356627114,1742849447665,-500.0,0.00046575,120]
[356627115,1742849447674,-504.17406419,0.00046575,120]
[356627116,1742849447683,-500.0,0.00046575,120]
[356627117,1742849447692,-502.33409582,0.00046575,120]
[356627118,1742849447702,-500.0,0.00046575,120]
[356627119,1742849447711,-500.0,0.00046575,30]
[356627120,1742849447720,-500.0,0.00046575,120]
[356627121,1742849447729,-505.60847334,0.00046575,120]
[356627122,1742849447739,-500.0,0.00046575,120]
[356627123,1742849447748,-516.16759036,0.00046575,120]
[356627124,1742849447759,-501.7104029,0.00046575,120]
[356627125,1742849447769,-500.0,0.00046575,120]
[356627126,1742849447778,-509.72975461,0.00046575,120]
[356627127,1742849447788,-500.0,0.00046575,120]
[356627128,1742849447797,-500.0,0.00046575,120]
[356627129,1742849447807,-500.0,0.00046575,120]
[356627130,1742849447816,-500.0,0.00046575,120]
[356627131,1742849447825,-500.0,0.00046575,120]
[356627132,1742849447834,-500.0,0.00046575,120]
[356627133,1742849447843,-503.93609685,0.00046575,120]
[356627134,1742849447852,-500.0,0.00046575,120]
[356627135,1742849447861,-500.0,0.00046575,120]
[356627136,1742849447872,-501.96360662,0.00046575,120]
[356627137,1742849447881,-500.0,0.00046575,120]
[356627138,1742849447890,-500.0,0.00046575,120]
[356627139,1742849447899,-292.60522341,0.00046575,120]
[356627140,1742849447909,-500.0,0.00046575,120]
[356627141,1742849447918,-500.0,0.00046575,120]
[356627142,1742849447927,-500.0,0.00046575,120]
[356627143,1742849447936,-532.00694891,0.00046575,120]
[356627144,1742849447945,-500.0,0.00046575,120]
[356627145,1742849447954,-500.0,0.00046575,120]
[356627146,1742849447965,-500.0,0.00046575,120]
[356627147,1742849447975,-530.24861273,0.00046575,120]
[356627148,1742849447984,-500.0,0.00046575,120]
[356627149,1742849447993,-507.44424587,0.00046575,120]
[356627150,1742849448002,-500.0,0.00046575,120]
[356627151,1742849448011,-503.0599088,0.00046575,120]
[356627152,1742849448020,-500.0,0.00046575,120]
[356627153,1742849448029,-500.0,0.00046575,120]
[356627154,1742849448040,-500.0,0.00046575,120]
[356627155,1742849448049,-500.0,0.00046575,120]
[356627156,1742849448059,-355.05235413,0.00046575,120]
[356627157,1742849448068,-500.0,0.00046575,120]
[356627158,1742849448077,-611.85416888,0.00046575,120]
[356627159,1742849448086,-502.14398719,0.00046575,120]
[356627160,1742849448095,-500.0,0.00046575,120]
[356627161,1742849448104,-500.0,0.00046575,120]
[356627162,1742849448114,-506.2374437,0.00046575,120]
[356627163,1742849448123,-500.0,0.00046575,120]
[356627164,1742849448132,-500.0,0.00046575,120]
[356627165,1742849448142,-504.55273938,0.00046575,120]
[356627166,1742849448151,-550.77675891,0.00046575,120]
[356627167,1742849448160,-504.70298493,0.00046575,120]
[356627168,1742849448170,-500.0,0.00046575,120]
[356627169,1742849448179,-505.09088106,0.00046575,120]
[356627170,1742849448188,-500.0,0.00046575,120]
[356627171,1742849448197,-500.0,0.00046575,120]
[356627172,1742849448207,-500.0,0.00046575,120]
[356627173,1742849448216,-500.0,0.00046575,120]
[356627174,1742849448225,-500.0,0.00046575,120]
[356627175,1742849448235,-500.0,0.00046575,120]
[356627176,1742849448244,-500.0,0.00046575,120]
[356627177,1742849448254,-500.0,0.00046575,120]
[356627178,1742849448264,-500.0,0.00046575,120]
[356627179,1742849448273,-500.0,0.00046575,120]
[356627180,1742849448283,-506.17237877,0.00046575,120]
[356627181,1742849448292,-500.0,0.00046575,120]
[356627182,1742849448302,-504.52311983,0.00046575,120]
[356627183,1742849448315,-500.0,0.00046575,120]
[356627184,1742849448325,-500.0,0.00046575,120]
[356627185,1742849448334,-534.84861001,0.00046575,120]
[356627186,1742849448345,-500.0,0.00046575,120]
[356627187,1742849448354,-204.78494399,0.00046575,120]
[356627188,1742849448364,-505.77148617,0.00046575,120]
[356627189,1742849448374,-500.0,0.00046575,120]
[356627190,1742849448383,-500.0,0.00046575,120]
[356627191,1742849448393,-500.0,0.00046575,120]
[356627192,1742849448403,-450.39854902,0.00046575,120]
[356627193,1742849448413,-524.3224194,0.00046575,120]
[356627194,1742849448423,-515.36051181,0.00046575,120]
[356627195,1742849448432,-506.39003652,0.00046575,120]
[356627196,1742849448443,-500.0,0.00046575,120]
[356627197,1742849448452,-505.68063728,0.00046575,120]
[356627198,1742849448462,-500.0,0.00046575,120]
[356627199,1742849448472,-500.0,0.00046575,120]
[356627200,1742849448482,-502.41718338,0.00046575,120]
[356627201,1742849448492,-500.0,0.00046575,120]
[356627202,1742849448502,-510.20032983,0.00046575,120]
[356627203,1742849448512,-500.0,0.00046575,120]
[356627204,1742849448522,-428.15539616,0.00046575,120]
[356627205,1742849448532,-601.38106342,0.00046575,120]
[356627206,1742849448542,-500.0,0.00046575,120]
[356627207,1742849448552,-500.0,0.00046575,120]
[356627208,1742849448562,-500.0,0.00046575,120]
[356627209,1742849448572,-516.28234716,0.00046575,120]
[356627210,1742849448582,-500.0,0.00046575,120]
[356627211,1742849448592,-522.86194843,0.00046575,120]
[356627212,1742849448602,-515.14267901,0.00046575,120]
[356627213,1742849448617,-500.0,0.00046575,120]
[356627214,1742849448627,-500.0,0.00046575,120]
[356627215,1742849448636,-558.04414355,0.00046575,120]
[356627216,1742849448646,-500.0,0.00046575,120]
[356627217,1742849448655,-415.30214866,0.00046575,120]
[356627218,1742849448664,-500.0,0.00046575,120]
[356627219,1742849448673,-505.15662153,0.00046575,120]
[356627220,1742849448684,-503.91749016,0.00046575,120]
[356627221,1742849448694,-500.0,0.00046575,120]
[356627222,1742849448704,-178.37838533,0.00046575,120]
[356627223,1742849448714,-500.0,0.00046575,120]
[356627224,1742849448724,-515.63225354,0.00046575,120]
[356627225,1742849448733,-516.37932166,0.00046575,120]
[356627226,1742849448743,-500.0,0.00046575,120]
[356627227,1742849448753,-502.41081792,0.00046575,120]
[356627228,1742849448763,-522.50518317,0.00046575,120]
[356627229,1742849448773,-500.0,0.00046575,120]
[356627230,1742849448783,-500.0,0.00046575,120]
[356627231,1742849448792,-234.92490149,0.00046575,120]
[356627232,1742849448802,-500.0,0.00046575,120]
[356627233,1742849448811,-501.4968109,0.00046575,120]
[356627234,1742849448821,-197.677449,0.00046575,120]
[356627235,1742849448830,-500.0,0.00046575,120]
[356627236,1742849448839,-504.71143156,0.00046575,120]
[356627237,1742849448849,-522.3537633,0.00046575,120]
[356627238,1742849448859,-499.95536025,0.00046575,120]
[356627239,1742849448872,-511.7506532,0.00046575,120]
[356627240,1742849448882,-523.98980681,0.00046575,120]
[356627241,1742849448892,-500.0,0.00046575,120]
[356627242,1742849448902,-500.0,0.00046575,120]
[356627243,1742849448912,-771.39,0.00046575,120]
[356627244,1742849448922,-507.45657466,0.00046575,120]
[356627245,1742849448931,-531.01094763,0.00046575,120]
[356627246,1742849448941,-503.67994648,0.00046575,120]
[356627247,1742849448950,-500.0,0.00046575,120]
[356627248,1742849448960,-530.3902342,0.00046575,120]
[356627249,1742849448970,-517.38142141,0.00046575,120]
[356627250,1742849448980,-514.65140109,0.00046575,120]
[356627251,1742849448989,-500.0,0.00046575,120]
[356627252,1742849449000,-504.22675351,0.00046575,120]
[356627253,1742849449009,-248.27029366,0.00046575,120]
[356627254,1742849449020,-500.0,0.00046575,120]
[356627255,1742849449029,-500.0,0.00046575,120]
[356627256,1742849449039,-502.21789022,0.00046575,120]
[356627257,1742849449049,-500.0,0.00046575,120]
[356627258,1742849449059,-507.51055954,0.00046575,120]
[356627259,1742849449068,-500.0,0.00046575,120]
[356627260,1742849449078,-504.92093385,0.00046575,120]
[356627261,1742849449087,-500.0,0.00046575,120]
[356627262,1742849449097,-501.72945606,0.00046575,120]
[356627263,1742849449108,-503.95667193,0.00046575,120]
[356627264,1742849449119,-527.62864652,0.00046575,120]
[356627265,1742849449129,-534.97178565,0.00046575,120]
[356627266,1742849449138,-500.0,0.00046575,120]
[356627267,1742849449148,-510.73199161,0.00046575,120]
[356627268,1742849449158,-500.0,0.00046575,120]
[356627269,1742849449167,-443.80150556,0.00046575,120]
[356627270,1742849449178,-500.0,0.00046575,120]
[356627271,1742849449188,-500.61635394,0.00046575,120]
[356627272,1742849449198,-500.0,0.00046575,120]
[356627273,1742849449207,-504.67852799,0.00046575,120]
[356627274,1742849449217,-502.77621425,0.00046575,120]
[356627275,1742849449226,-511.90248477,0.00046575,120]
[356627276,1742849449236,-518.50672091,0.00046575,120]
[356627277,1742849449246,-505.22681005,0.00046575,120]
[356627278,1742849449256,-500.0,0.00046575,120]
[356627279,1742849449266,-500.0,0.00046575,120]
[356627280,1742849449276,-500.0,0.00046575,120]
[356627281,1742849449286,-500.0,0.00046575,120]
[356627282,1742849449296,-519.69297514,0.00046575,120]
[356627283,1742849449305,-502.80948933,0.00046575,120]
[356627284,1742849449315,-500.0,0.00046575,120]
[356627285,1742849449325,-521.12265833,0.00046575,120]
[356627286,1742849449335,-276.5661086,0.00046575,120]
[356627287,1742849449345,-500.0,0.00046575,120]
[356627288,1742849449354,-500.0,0.00046575,120]
[356627289,1742849449364,-502.23984843,0.00046575,120]
[356627290,1742849449374,-500.0,0.00046575,120]
[356627291,1742849449384,-526.21,0.00046575,120]
[356627292,1742849449393,-502.50736772,0.00046575,120]
[356627293,1742849449403,-500.0,0.00046575,120]
[356627294,1742849449412,-500.0,0.00046575,120]
[356627295,1742849449422,-500.0,0.00046575,120]
[356627296,1742849449432,-562.3402572,0.00046575,120]
[356627297,1742849449442,-291.09374738,0.00046575,120]
[356627298,1742849449452,-524.06909788,0.00046575,120]
[356627299,1742849449461,-500.0,0.00046575,120]
[356627300,1742849449470,-523.73875396,0.00046575,120]
[356627301,1742849449480,-500.0,0.00046575,120]
[356627302,1742849449489,-500.0,0.00046575,120]
[356627303,1742849449498,-500.0,0.00046575,120]
[356627304,1742849449508,-507.01537658,0.00046575,120]
[356627305,1742849449517,-500.0,0.00046575,120]
[356627306,1742849449526,-504.48680715,0.00046575,120]
[356627307,1742849449536,-500.0,0.00046575,120]
[356627308,1742849449545,-447.13001461,0.00046575,120]
[356627309,1742849449554,-500.0,0.00046575,120]
[356627310,1742849449564,-366.25993702,0.00046575,120]
[356627311,1742849449573,-536.14103251,0.00046575,120]
[356627312,1742849449582,-524.18750543,0.00046575,120]
[356627313,1742849449591,-561.82378653,0.00046575,120]
[356627314,1742849449601,-503.12325902,0.00046575,120]
[356627315,1742849449614,-500.0,0.00046575,120]
[356627316,1742849449623,-522.11047175,0.00046575,120]
[356627317,1742849449633,-508.25673143,0.00046575,120]
[356627318,1742849449642,-505.1008154,0.00046575,120]
[356627319,1742849449651,-500.0,0.00046575,120]
[356627320,1742849449662,-500.0,0.00046575,120]
[356627321,1742849449671,-601.09568333,0.00046575,120]
[356627322,1742849449680,-509.7283878,0.00046575,120]
[356627323,1742849449689,-444.7892624,0.00046575,120]
[356627324,1742849449698,-503.57240326,0.00046575,120]
[356627325,1742849449707,-500.0,0.00046575,120]
[356627326,1742849449716,-500.0,0.00046575,120]
[356627327,1742849449725,-500.0,0.00046575,120]
[356627328,1742849449735,-513.29217151,0.00046575,120]
[356627329,1742849449744,-500.0,0.00046575,120]
[356627330,1742849449753,-500.0,0.00046575,120]
[356627331,1742849449763,-503.60142321,0.00046575,120]
[356627332,1742849449772,-500.0,0.00046575,120]
[356627333,1742849449781,-516.46569057,0.00046575,120]
[356627334,1742849449790,-500.0,0.00046575,120]
[356627335,1742849449800,-500.0,0.00046575,120]
[356627336,1742849449809,-513.96860987,0.00046575,120]
[356627337,1742849449819,-500.0,0.00046575,120]
[356627338,1742849449828,-2000.0,0.00046575,30]
[356627339,1742849449837,-1002.64458015,0.00046575,120]
[356627340,1742849449846,-509.03919862,0.00046575,120]
[356627341,1742849449855,-512.44098004,0.00046575,120]
[356627342,1742849449865,-602.83914618,0.00046575,120]
[356627343,1742849449874,-500.0,0.00046575,120]
[356627344,1742849449883,-528.7871106,0.00046575,120]
[356627345,1742849449892,-500.0,0.00046575,120]
[356627346,1742849449902,-507.96057163,0.00046575,120]
[356627347,1742849449911,-503.90428414,0.00046575,120]
[356627348,1742849449921,-500.0,0.00046575,120]
[356627349,1742849449930,-516.92520231,0.00046575,120]
[356627350,1742849449939,-500.0,0.00046575,120]
[356627351,1742849449949,-500.0,0.00046575,120]
[356627352,1742849449958,-518.04165026,0.00046575,120]
[356627353,1742849449968,-505.17029051,0.00046575,120]
[356627354,1742849449978,-500.0,0.00046575,120]
[356627355,1742849449987,-500.0,0.00046575,120]
[356627356,1742849449996,-509.73197312,0.00046575,120]
[356627357,1742849450006,-500.0,0.00046575,120]
[356627358,1742849450015,-1000.0,0.00046575,120]
[356627359,1742849450025,-510.33484206,0.00046575,120]
[356627360,1742849450034,-500.0,0.00046575,120]
[356627361,1742849450043,-506.08046583,0.00046575,120]
[356627362,1742849450053,-550.22327688,0.00046575,120]
[356627363,1742849450062,-502.25124254,0.00046575,120]
[356627364,1742849450072,-500.0,0.00046575,120]
[356627365,1742849450203,-500.0,0.00046575,120]
[356627366,1742849450212,-154.65020015,0.00046575,120]
[356627367,1742849450222,-500.0,0.00046575,120]
[356627368,1742849450231,-500.0,0.00046575,120]
[356627369,1742849450240,-526.78881249,0.00046575,120]
[356627370,1742849450250,-503.64344209,0.00046575,120]
[356627371,1742849450259,-582.56032241,0.00046575,120]
[356627372,1742849450268,-538.49374174,0.00046575,120]
[356627373,1742849450278,-500.0,0.00046575,120]
[356627374,1742849450287,-500.0,0.00046575,120]
[356627375,1742849450296,-518.37554178,0.00046575,120]
[356627376,1742849450306,-543.42647934,0.00046575,120]
[356627377,1742849450315,-500.0,0.00046575,120]
[356627378,1742849450326,-532.58497312,0.00046575,120]
[356627379,1742849450335,-500.0,0.00046575,120]
[356627380,1742849450345,-506.07072412,0.00046575,120]
[356627381,1742849450354,-500.0,0.00046575,120]
[356627382,1742849450364,-500.0,0.00046575,120]
[356627383,1742849450373,-500.0,0.00046575,120]
[356627384,1742849450383,-504.64618563,0.00046575,120]
[356627385,1742849450393,-500.0,0.00046575,120]
[356627386,1742849450402,-500.0,0.00046575,120]
[356627387,1742849450412,-500.0,0.00046575,120]
[356627388,1742849450421,-521.46128713,0.00046575,120]
[356627389,1742849450430,-502.03337472,0.00046575,120]
[356627390,1742849450440,-500.0,0.00046575,120]
[356627391,1742849450449,-500.0,0.00046575,120]
[356627392,1742849450458,-500.0,0.00046575,120]
[356627393,1742849450468,-500.0,0.00046575,120]
[356627394,1742849450477,-640.48581401,0.00046575,120]
[356627395,1742849450487,-501.37433421,0.00046575,120]
[356627396,1742849450496,-500.0,0.00046575,120]
[356627397,1742849450505,-520.50069652,0.00046575,120]
[356627398,1742849450515,-500.0,0.00046575,120]
[356627399,1742849450524,-500.0,0.00046575,120]
[356627400,1742849450533,-500.0,0.00046575,120]
[356627401,1742849450543,-500.0,0.00046575,120]
[356627402,1742849450552,-500.0,0.00046575,120]
[356627403,1742849450561,-500.0,0.00046575,120]
[356627404,1742849450571,-500.0,0.00046575,120]
[356627405,1742849450580,-500.0,0.00046575,120]
[356627406,1742849450590,-527.47707631,0.00046575,120]
[356627407,1742849450599,-512.35211926,0.00046575,120]
[356627408,1742849450609,-502.51802683,0.00046575,120]
[356627409,1742849450621,-521.53554743,0.00046575,120]
[356627410,1742849450630,-506.61446138,0.00046575,120]
[356627411,1742849450639,-500.0,0.00046575,120]
[356627412,1742849450648,-245.65092818,0.00046575,120]
[356627413,1742849450659,-601.49221837,0.00046575,120]
[356627414,1742849450668,-501.70259198,0.00046575,120]
[356627415,1742849450677,-500.0,0.00046575,120]
[356627416,1742849450688,-500.0,0.00046575,120]
[356627417,1742849450698,-500.0,0.00046575,120]
[356627418,1742849450707,-511.15067262,0.00046575,120]
[356627419,1742849450717,-518.70488736,0.00046575,120]
[356627420,1742849450726,-511.30929185,0.00046575,120]
[356627421,1742849450736,-500.0,0.00046575,120]
[356627422,1742849450745,-500.0,0.00046575,120]
[356627423,1742849450755,-523.00348312,0.00046575,120]
[356627424,1742849450764,-178.54848228,0.00046575,120]
[356627425,1742849450774,-500.0,0.00046575,120]
[356627426,1742849450783,-32.20726012,0.00046575,120]
[356627427,1742849450887,-482.14489522,0.00046575,120]
[356627428,1742849450896,-510.27257451,0.00046575,120]
[356627429,1742849450906,-502.90400493,0.00046575,120]
[356627430,1742849450915,-511.5353242,0.00046575,120]
[356627431,1742849450925,-500.0,0.00046575,120]
[356627432,1742849450934,-529.37123318,0.00046575,120]
[356627433,1742849450944,-520.92197529,0.00046575,120]
[356627434,1742849450953,-503.86409817,0.00046575,120]
[356627435,1742849450962,-243.2858945,0.00046575,120]
[356627436,1742849451043,-217.51699916,0.000339,6]
[356627437,1742849451054,-881.0,0.00046575,7]
[356627438,1742849451064,-271.2226687,0.00046575,120]
[356627439,1742849451074,-500.0,0.00046575,120]
[356627440,1742849451085,-511.93274868,0.00046575,120]
[356627441,1742849451095,-500.0,0.00046575,120]
[356627442,1742849451105,-500.0,0.00046575,120]
[356627443,1742849451117,-542.52111789,0.00046575,120]
[356627444,1742849451127,-183.20666627,0.00046575,120]
[356627445,1742849451137,-441.87098819,0.00046575,120]
[356627446,1742849451148,-506.5906387,0.00046575,120]
[356627447,1742849451158,-500.0,0.00046575,120]
[356627448,1742849451169,-500.0,0.00046575,120]
[356627449,1742849451180,-500.0,0.00046575,120]
[356627450,1742849451190,-230.28839773,0.00046575,120]
[356627451,1742849451200,-500.0,0.00046575,120]
[356627452,1742849451210,-500.0,0.00046575,120]
[356627453,1742849451220,-500.0,0.00046575,120]
[356627454,1742849451231,-216.1580135,0.00046575,120]
[356627455,1742849451240,-503.96769305,0.00046575,120]
[356627456,1742849451250,-501.45993609,0.00046575,120]
[356627457,1742849451260,-517.86989336,0.00046575,120]
[356627458,1742849451270,-500.0,0.00046575,120]
[356627459,1742849451280,-500.0,0.00046575,120]
[356627460,1742849451289,-500.0,0.00046575,120]
[356627461,1742849451298,-500.0,0.00046575,30]
[356627462,1742849451308,-505.4029895,0.00046575,120]
[356627463,1742849451317,-177.12563724,0.00046575,120]
[356627464,1742849451326,-533.79980157,0.00046575,120]
[356627465,1742849451335,-519.22665737,0.00046575,120]
[356627466,1742849451345,-500.0,0.00046575,120]
[356627467,1742849451354,-500.0,0.00046575,120]
[356627468,1742849451364,-500.0,0.00046575,120]
[356627469,1742849451374,-500.0,0.00046575,120]
[356627470,1742849451383,-550.63128151,0.00046575,120]
[356627471,1742849451392,-512.12429595,0.00046575,120]
[356627472,1742849451402,-500.0,0.00046575,120]
[356627473,1742849451411,-500.0,0.00046575,120]
[356627474,1742849451420,-500.0,0.00046575,120]
[356627475,1742849451430,-500.0,0.00046575,120]
[356627476,1742849451439,-500.0,0.00046575,120]
[356627477,1742849451449,-500.0,0.00046575,120]
[356627478,1742849451459,-500.0,0.00046575,120]
[356627479,1742849451468,-500.0,0.00046575,120]
[356627480,1742849451478,-630.30299216,0.00046575,120]
[356627481,1742849451487,-549.21904128,0.00046575,120]
[356627482,1742849451496,-500.0,0.00046575,120]
[356627483,1742849451505,-519.12,0.00046575,120]
[356627484,1742849451515,-500.0,0.00046575,120]
[356627485,1742849451524,-500.0,0.00046575,120]
[356627486,1742849451534,-572.14975158,0.00046575,120]
[356627487,1742849451543,-500.0,0.00046575,120]
[356627488,1742849451553,-500.0,0.00046575,120]
[356627489,1742849451563,-500.0,0.00046575,120]
[356627490,1742849451572,-500.0,0.00046575,120]
[356627491,1742849451582,-500.0,0.00046575,120]
[356627492,1742849451591,-500.0,0.00046575,120]
[356627493,1742849451600,-641.82362117,0.00046575,120]
[356627494,1742849451611,-500.0,0.00046575,120]
[356627495,1742849451623,-500.0,0.00046575,120]
[356627496,1742849451632,-500.0,0.00046575,120]
[356627497,1742849451641,-2765.97,0.00046575,2]
[356627498,1742849451650,-500.0,0.00046575,120]
[356627499,1742849451661,-500.0,0.00046575,100]
[356627500,1742849451670,-500.0,0.00046575,120]
[356627501,1742849451679,-500.0,0.00046575,120]
[356627502,1742849451689,-518.91224772,0.00046575,120]
[356627503,1742849451699,-500.0,0.00046575,7]
[356627504,1742849451708,-516.43860324,0.00046575,120]
[356627505,1742849451718,-500.0,0.00046575,120]
[356627506,1742849451727,-500.0,0.00046575,120]
[356627507,1742849451736,-530.09283881,0.00046575,120]
[356627508,1742849451746,-500.0,0.00046575,120]
[356627509,1742849451755,-514.86601512,0.00046575,120]
[356627510,1742849451765,-513.97283682,0.00046575,120]
[356627511,1742849451775,-554.90966784,0.00046575,120]
[356627512,1742849451784,-500.0,0.00046575,120]
[356627513,1742849451794,-353.09570957,0.00046575,120]
[356627514,1742849451804,-1299.0,0.00046704,30]
[356627515,1742849451814,-20267.1701393,0.00046819,3]
[356627516,1742849451823,-29033.8148379,0.00046829,3]
[356627517,1742849451833,-81068.6805571,0.00046829,3]
[356627518,1742849451843,-87101.4445137,0.00046839,3]
[356627519,1742849451852,-500.0,0.00046849,120]
[356627520,1742849451861,-500.0,0.00046849,120]
[356627521,1742849451872,-500.0,0.00046849,120]
[356627522,1742849451882,-500.0,0.00046849,120]
[356627523,1742849451892,-500.0,0.00046849,120]
[356627524,1742849451902,-500.0,0.00046849,120]
[356627525,1742849451911,-247.00617545,0.00046849,120]
[356627526,1742849451921,-500.0,0.00046849,60]
[356627527,1742849451931,-500.0,0.00046849,30]
[356627528,1742849451941,-500.0,0.00046849,120]
[356627529,1742849451951,-493.52724923,0.00046849,120]
[356627530,1742849451961,-207.81043781,0.00046849,120]
[356627531,1742849451970,-541.53348708,0.00046849,120]
[356627532,1742849451981,-500.0,0.00046849,120]
[356627533,1742849451990,-500.0,0.00046849,120]
[356627534,1742849452000,-500.0,0.00046849,120]
[356627535,1742849452010,-500.0,0.00046849,2]
[356627536,1742849452019,-505.76848289,0.00046849,120]
[356627537,1742849452030,-512.68589126,0.00046849,120]
[356627538,1742849452039,-500.0,0.00046849,120]
[356627539,1742849452049,-500.0,0.00046849,120]
[356627540,1742849452059,-500.0,0.00046849,120]
[356627541,1742849452068,-500.0,0.00046849,120]
[356627542,1742849452078,-500.0,0.00046849,120]
[356627543,1742849452088,-500.0,0.00046849,120]
[356627544,1742849452097,-542.31828239,0.00046849,120]
[356627545,1742849452106,-515.20863228,0.00046849,120]
[356627546,1742849452115,-529.72779094,0.00046849,120]
[356627547,1742849452124,-540.74708645,0.00046849,120]
[356627548,1742849452134,-522.6283419,0.00046849,120]
[356627549,1742849452143,-472.89959483,0.00046849,120]
[356627550,1742849452152,-500.0,0.00046849,120]
[356627551,1742849452160,-500.0,0.00046849,120]
[356627552,1742849452169,-525.87816864,0.00046849,120]
[356627553,1742849452178,-500.0,0.00046849,120]
[356627554,1742849452187,-500.0,0.00046849,120]
[356627555,1742849452196,-539.90143216,0.00046849,120]
[356627556,1742849452206,-500.0,0.00046849,120]
[356627557,1742849452215,-500.0,0.00046849,120]
[356627558,1742849452224,-163.67023895,0.00046849,120]
[356627559,1742849452233,-500.0,0.00046849,120]
[356627560,1742849452243,-500.0,0.00046849,120]
[356627561,1742849452252,-517.43707317,0.00046849,120]
[356627562,1742849452262,-494.05434119,0.00046849,120]
[356627563,1742849452271,-620.21348096,0.00046849,120]
[356627564,1742849452280,-500.0,0.00046849,120]
[356627565,1742849452289,-521.73762286,0.00046849,120]
[356627566,1742849452298,-561.8320403,0.00046849,120]
[356627567,1742849452307,-517.75174636,0.00046849,120]
[356627568,1742849452317,-523.224442,0.00046849,120]
[356627569,1742849452326,-500.0,0.00046849,120]
[356627570,1742849452335,-501.06,0.00046849,120]
[356627571,1742849452344,-507.1906024,0.00046849,120]